[Event "Titled Tuesday Blitz January 17 Early 2023"]
[White "Flis, Pawel"]
[Black "Legenia, Artem"]
[WhiteFideId "1112864"]
[BlackFideId "14136945"]
[WhiteElo "1879"]
[BlackElo "2092"]
[Result "0-1"]
[Round "02"]
[TimeControl "180+2"]
[Date "2023.01.17"]
[WhiteClock "0:00:01"]
[BlackClock "0:00:04"]

1. e4 {[%clk 0:03:00]}  b6 {[%clk 0:02:50]} 2. d4 {[%clk 0:03:00]}  Bb7 {[%clk 0:02:51]} 3. Bd3 {[%clk 0:03:00]}  d6 {[%clk 0:02:51]} 4. Nf3 {[%clk 0:03:00]}  e6 {[%clk 0:02:51]} 5. O-O {[%clk 0:03:01]}  h6 {[%clk 0:02:51]} 6. c4 {[%clk 0:03:01]}  Nd7 {[%clk 0:02:52]} 7. Nc3 {[%clk 0:03:01]}  a6 {[%clk 0:02:50]} 8. d5 {[%clk 0:03:01]}  e5 {[%clk 0:02:50]} 9. Be3 {[%clk 0:02:56]}  g6 {[%clk 0:02:50]} 10. b4 {[%clk 0:02:54]}  Bg7 {[%clk 0:02:50]} 11. a3 {[%clk 0:02:53]}  Ne7 {[%clk 0:02:50]} 12. Rc1 {[%clk 0:02:53]}  f5 {[%clk 0:02:50]} 13. exf5 {[%clk 0:02:50]}  gxf5 {[%clk 0:02:49]} 14. Nh4 {[%clk 0:02:46]}  O-O {[%clk 0:02:49]} 15. Qh5 {[%clk 0:02:44]}  Nf6 {[%clk 0:02:44]} 16. Qe2 {[%clk 0:02:32]}  Bc8 {[%clk 0:02:23]} 17. c5 {[%clk 0:02:23]}  f4 {[%clk 0:02:22]} 18. Bd2 {[%clk 0:02:20]}  dxc5 {[%clk 0:02:09]} 19. bxc5 {[%clk 0:02:19]}  Nfxd5 {[%clk 0:02:06]} 20. Bc4 {[%clk 0:02:11]}  Be6 {[%clk 0:02:01]} 21. cxb6 {[%clk 0:02:08]}  cxb6 {[%clk 0:01:59]} 22. Nxd5 {[%clk 0:01:38]}  Bxd5 {[%clk 0:01:44]} 23. Bb4 {[%clk 0:01:36]}  Bf6 {[%clk 0:01:16]} 24. Bxe7 {[%clk 0:01:02]}  Bxe7 {[%clk 0:01:13]} 25. Ng6 {[%clk 0:01:00]}  Bxc4 {[%clk 0:00:49]} 26. Qxc4+ {[%clk 0:00:54]}  Kg7 {[%clk 0:00:48]} 27. Rfd1 {[%clk 0:00:43]}  Qe8 {[%clk 0:00:46]} 28. Nxf8 {[%clk 0:00:41]}  Qxf8 {[%clk 0:00:44]} 29. Qe6 {[%clk 0:00:40]}  f3 {[%clk 0:00:33]} 30. Rc7 {[%clk 0:00:25]}  Re8 {[%clk 0:00:25]} 31. Qxe5+ {[%clk 0:00:20]}  Kg8 {[%clk 0:00:25]} 32. Rdd7 {[%clk 0:00:13]}  Bf6 {[%clk 0:00:13]} 33. Qg3+ {[%clk 0:00:13]}  Kh8 {[%clk 0:00:12]} 34. gxf3 {[%clk 0:00:12]}  Re1+ {[%clk 0:00:08]} 35. Kg2 {[%clk 0:00:11]}  Qg8 {[%clk 0:00:08]} 36. Rh7+ {[%clk 0:00:10]}  Qxh7 {[%clk 0:00:08]} 37. Rxh7+ {[%clk 0:00:10]}  Kxh7 {[%clk 0:00:09]} 38. Qf4 {[%clk 0:00:09]}  Bg5 {[%clk 0:00:09]} 39. Qf7+ {[%clk 0:00:08]}  Kh8 {[%clk 0:00:09]} 40. Qf8+ {[%clk 0:00:08]}  Kh7 {[%clk 0:00:09]} 41. Qb4 {[%clk 0:00:08]}  Re6 {[%clk 0:00:07]} 42. Qc4 {[%clk 0:00:07]}  Rg6 {[%clk 0:00:07]} 43. Kh3 {[%clk 0:00:06]}  b5 {[%clk 0:00:07]} 44. Qc7+ {[%clk 0:00:05]}  Rg7 {[%clk 0:00:07]} 45. Qc6 {[%clk 0:00:06]}  Rg6 {[%clk 0:00:07]} 46. Qe4 {[%clk 0:00:06]}  Kg7 {[%clk 0:00:07]} 47. f4 {[%clk 0:00:06]}  Bf6 {[%clk 0:00:07]} 48. f5 {[%clk 0:00:06]}  Rg5 {[%clk 0:00:07]} 49. Qe6 {[%clk 0:00:05]}  h5 {[%clk 0:00:06]} 50. f4 {[%clk 0:00:05]}  Rg4 {[%clk 0:00:04]} 51. Qd7+ {[%clk 0:00:04]}  Kh6 {[%clk 0:00:04]} 52. Qf7 {[%clk 0:00:04]}  Bd4 {[%clk 0:00:03]} 53. Qf8+ {[%clk 0:00:04]}  Kh7 {[%clk 0:00:03]} 54. Qf7+ {[%clk 0:00:04]}  Kh6 {[%clk 0:00:03]} 55. Qe6+ {[%clk 0:00:04]}  Kg7 {[%clk 0:00:03]} 56. f6+ {[%clk 0:00:03]}  Kg6 {[%clk 0:00:03]} 57. f7+ {[%clk 0:00:03]}  Kg7 {[%clk 0:00:03]} 58. Qe8 {[%clk 0:00:03]}  Bc5 {[%clk 0:00:03]} 59. Qe5+ {[%clk 0:00:01]}  Kxf7 {[%clk 0:00:02]} 60. Qxc5 {[%clk 0:00:02]}  Rxf4 {[%clk 0:00:02]} 61. Qxh5+ {[%clk 0:00:02]}  Kf6 {[%clk 0:00:02]} 62. Qh6+ {[%clk 0:00:02]}  Ke5 {[%clk 0:00:02]} 63. Qg7+ {[%clk 0:00:01]}  Kf5 {[%clk 0:00:02]} 64. Qf7+ {[%clk 0:00:01]}  Ke4 {[%clk 0:00:03]} 65. Qe6+ {[%clk 0:00:01]}  Kf3 {[%clk 0:00:03]} 66. Qxa6 {[%clk 0:00:01]}  Ke3 {[%clk 0:00:04]} 0-1


[Site "https://www.chess.com"]

[Event "Titled Tuesday Blitz January 17 Early 2023"]
[White "Chilukuri, Sai Varshith"]
[Black "Marn, Jan"]
[WhiteFideId "25617125"]
[BlackFideId "14619245"]
[WhiteElo "1943"]
[BlackElo "2345"]
[Result "1-0"]
[Round "02"]
[TimeControl "180+2"]
[Date "2023.01.17"]
[WhiteClock "0:02:05"]
[BlackClock "0:01:10"]

1. d4 {[%clk 0:03:00]}  d5 {[%clk 0:02:57]} 2. c4 {[%clk 0:03:01]}  e6 {[%clk 0:02:57]} 3. Nf3 {[%clk 0:03:00]}  h6 {[%clk 0:02:40]} 4. Nc3 {[%clk 0:02:57]}  a6 {[%clk 0:02:40]} 5. e4 {[%clk 0:02:53]}  dxe4 {[%clk 0:02:31]} 6. Nxe4 {[%clk 0:02:53]}  Nf6 {[%clk 0:02:31]} 7. Bd3 {[%clk 0:02:53]}  Nxe4 {[%clk 0:02:22]} 8. Bxe4 {[%clk 0:02:53]}  c5 {[%clk 0:02:22]} 9. O-O {[%clk 0:02:51]}  Nc6 {[%clk 0:02:22]} 10. d5 {[%clk 0:02:46]}  Na5 {[%clk 0:02:16]} 11. Ne5 {[%clk 0:02:44]}  Bd6 {[%clk 0:02:14]} 12. Qh5 {[%clk 0:02:38]}  Bxe5 {[%clk 0:02:09]} 13. Qxe5 {[%clk 0:02:37]}  Qf6 {[%clk 0:02:07]} 14. Qc7 {[%clk 0:02:25]}  Nxc4 {[%clk 0:01:58]} 15. d6 {[%clk 0:02:13]}  Qd8 {[%clk 0:01:52]} 16. Qxc5 {[%clk 0:02:09]}  Nxd6 {[%clk 0:01:50]} 17. Rd1 {[%clk 0:02:09]}  Qh4 {[%clk 0:01:10]} 18. Qxd6 {[%clk 0:02:05]} 1-0


[Site "https://www.chess.com"]

[Event "Titled Tuesday Blitz January 17 Early 2023"]
[White "Garv Gaur"]
[Black "Baruch, Liam"]
[WhiteFideId "45030839"]
[BlackFideId "14322064"]
[WhiteElo "2006"]
[BlackElo "1718"]
[Result "1-0"]
[Round "02"]
[TimeControl "180+2"]
[Date "2023.01.17"]
[WhiteClock "0:00:53"]
[BlackClock "0:00:34"]

1. Nf3 {[%clk 0:03:00]}  d5 {[%clk 0:02:59]} 2. d4 {[%clk 0:03:00]}  Nf6 {[%clk 0:02:56]} 3. c4 {[%clk 0:03:00]}  e6 {[%clk 0:02:55]} 4. g3 {[%clk 0:03:00]}  Be7 {[%clk 0:02:55]} 5. Bg2 {[%clk 0:03:00]}  O-O {[%clk 0:02:55]} 6. O-O {[%clk 0:03:01]}  dxc4 {[%clk 0:02:56]} 7. Qc2 {[%clk 0:03:01]}  a6 {[%clk 0:02:52]} 8. a4 {[%clk 0:03:01]}  Bd7 {[%clk 0:02:41]} 9. Ne5 {[%clk 0:03:01]}  Bc6 {[%clk 0:02:39]} 10. Nxc6 {[%clk 0:03:01]}  Nxc6 {[%clk 0:02:40]} 11. e3 {[%clk 0:03:02]}  Na5 {[%clk 0:02:29]} 12. Nd2 {[%clk 0:03:02]}  c5 {[%clk 0:02:19]} 13. dxc5 {[%clk 0:03:01]}  Bxc5 {[%clk 0:02:20]} 14. Nxc4 {[%clk 0:02:57]}  Nxc4 {[%clk 0:01:57]} 15. Qxc4 {[%clk 0:02:58]}  Qb6 {[%clk 0:01:58]} 16. a5 {[%clk 0:02:43]}  Qc7 {[%clk 0:01:51]} 17. b4 {[%clk 0:02:39]}  Bd6 {[%clk 0:01:46]} 18. Qxc7 {[%clk 0:02:39]}  Bxc7 {[%clk 0:01:47]} 19. Bxb7 {[%clk 0:02:39]}  Rab8 {[%clk 0:01:47]} 20. Bxa6 {[%clk 0:02:39]}  Rxb4 {[%clk 0:01:48]} 21. Ba3 {[%clk 0:02:39]}  Rbb8 {[%clk 0:01:41]} 22. Bxf8 {[%clk 0:02:38]}  Kxf8 {[%clk 0:01:40]} 23. Bc4 {[%clk 0:02:35]}  Ra8 {[%clk 0:01:38]} 24. a6 {[%clk 0:02:35]}  Nd7 {[%clk 0:01:39]} 25. a7 {[%clk 0:02:30]}  Bb6 {[%clk 0:01:33]} 26. Rfd1 {[%clk 0:02:26]}  Ne5 {[%clk 0:01:31]} 27. Bb5 {[%clk 0:02:10]}  Rxa7 {[%clk 0:01:27]} 28. Rac1 {[%clk 0:02:09]}  Rc7 {[%clk 0:01:20]} 29. Rxc7 {[%clk 0:01:55]}  Bxc7 {[%clk 0:01:21]} 30. f4 {[%clk 0:01:55]}  Ng4 {[%clk 0:01:14]} 31. Rd7 {[%clk 0:01:40]}  Bb6 {[%clk 0:01:13]} 32. Kg2 {[%clk 0:01:40]}  Nxe3+ {[%clk 0:01:13]} 33. Kf3 {[%clk 0:01:40]}  Nd5 {[%clk 0:01:11]} 34. Bc6 {[%clk 0:01:39]}  Nf6 {[%clk 0:01:06]} 35. Rb7 {[%clk 0:01:39]}  Bd8 {[%clk 0:01:06]} 36. g4 {[%clk 0:01:39]}  g6 {[%clk 0:01:05]} 37. g5 {[%clk 0:01:34]}  Ne8 {[%clk 0:01:00]} 38. Rd7 {[%clk 0:01:06]}  Bb6 {[%clk 0:00:55]} 39. Rb7 {[%clk 0:01:04]}  Bg1 {[%clk 0:00:55]} 40. Rb8 {[%clk 0:01:04]}  Bxh2 {[%clk 0:00:54]} 41. Rxe8+ {[%clk 0:01:04]}  Kg7 {[%clk 0:00:54]} 42. Re7 {[%clk 0:01:04]}  Bg1 {[%clk 0:00:54]} 43. Rb7 {[%clk 0:01:03]}  h5 {[%clk 0:00:54]} 44. Be8 {[%clk 0:01:02]}  Kf8 {[%clk 0:00:49]} 45. Bxf7 {[%clk 0:01:02]}  e5 {[%clk 0:00:48]} 46. fxe5 {[%clk 0:01:01]}  h4 {[%clk 0:00:48]} 47. e6 {[%clk 0:00:59]}  Bc5 {[%clk 0:00:47]} 48. Bxg6 {[%clk 0:00:59]}  h3 {[%clk 0:00:45]} 49. Kg3 {[%clk 0:00:58]}  h2 {[%clk 0:00:46]} 50. Kxh2 {[%clk 0:00:58]}  Be7 {[%clk 0:00:39]} 51. Kh3 {[%clk 0:00:55]}  Bxg5 {[%clk 0:00:37]} 52. Kg4 {[%clk 0:00:55]}  Bf6 {[%clk 0:00:37]} 53. Kf5 {[%clk 0:00:56]}  Bd4 {[%clk 0:00:37]} 54. e7+ {[%clk 0:00:54]}  Kg7 {[%clk 0:00:34]} 55. e8=Q+ {[%clk 0:00:55]}  Kh6 {[%clk 0:00:34]} 56. Rh7# {[%clk 0:00:53]} 1-0


[Site "https://www.chess.com"]

[Event "Titled Tuesday Blitz January 17 Early 2023"]
[White "Nakamura, Hikaru"]
[Black "Rustemov, Alexander"]
[WhiteFideId "2016192"]
[BlackFideId "4119002"]
[WhiteElo "2775"]
[BlackElo "2525"]
[Result "1-0"]
[Round "03"]
[TimeControl "180+2"]
[Date "2023.01.17"]
[WhiteClock "0:00:06"]
[BlackClock "0:00:02"]

1. Nf3 {[%clk 0:02:56]}  d5 {[%clk 0:03:00]} 2. g3 {[%clk 0:02:51]}  c6 {[%clk 0:03:00]} 3. Bg2 {[%clk 0:02:51]}  Bf5 {[%clk 0:03:00]} 4. d3 {[%clk 0:02:51]}  e6 {[%clk 0:03:01]} 5. Nh4 {[%clk 0:02:51]}  Bg6 {[%clk 0:03:00]} 6. Nxg6 {[%clk 0:02:51]}  hxg6 {[%clk 0:03:00]} 7. Nd2 {[%clk 0:02:52]}  Nd7 {[%clk 0:02:55]} 8. e4 {[%clk 0:02:52]}  Ngf6 {[%clk 0:02:52]} 9. Qe2 {[%clk 0:02:47]}  Bd6 {[%clk 0:02:47]} 10. O-O {[%clk 0:02:35]}  O-O {[%clk 0:02:41]} 11. f4 {[%clk 0:02:23]}  dxe4 {[%clk 0:02:38]} 12. dxe4 {[%clk 0:02:23]}  e5 {[%clk 0:02:37]} 13. f5 {[%clk 0:02:24]}  Qe7 {[%clk 0:02:20]} 14. c3 {[%clk 0:02:08]}  Rad8 {[%clk 0:02:18]} 15. Nc4 {[%clk 0:02:07]}  Bc5+ {[%clk 0:02:13]} 16. Kh1 {[%clk 0:02:07]}  Nb6 {[%clk 0:02:13]} 17. Na5 {[%clk 0:02:06]}  Nc8 {[%clk 0:02:04]} 18. fxg6 {[%clk 0:01:50]}  fxg6 {[%clk 0:02:03]} 19. Bg5 {[%clk 0:01:33]}  Nd6 {[%clk 0:02:02]} 20. Nc4 {[%clk 0:01:26]}  Kh7 {[%clk 0:01:44]} 21. Nd2 {[%clk 0:01:16]}  Qe6 {[%clk 0:01:38]} 22. h3 {[%clk 0:01:16]}  Rd7 {[%clk 0:01:34]} 23. Kh2 {[%clk 0:01:08]}  Nf7 {[%clk 0:01:34]} 24. Nf3 {[%clk 0:01:08]}  Kg8 {[%clk 0:01:16]} 25. Bc1 {[%clk 0:01:03]}  Kh7 {[%clk 0:01:04]} 26. b4 {[%clk 0:00:58]}  Bb6 {[%clk 0:01:04]} 27. a4 {[%clk 0:00:58]}  a6 {[%clk 0:01:04]} 28. c4 {[%clk 0:00:52]}  Bd4 {[%clk 0:01:01]} 29. Ra3 {[%clk 0:00:51]}  Rfd8 {[%clk 0:01:00]} 30. a5 {[%clk 0:00:48]}  c5 {[%clk 0:00:54]} 31. b5 {[%clk 0:00:48]}  Kg8 {[%clk 0:00:49]} 32. bxa6 {[%clk 0:00:47]}  bxa6 {[%clk 0:00:45]} 33. Rb3 {[%clk 0:00:43]}  Nd6 {[%clk 0:00:45]} 34. Nd2 {[%clk 0:00:43]}  Rb7 {[%clk 0:00:43]} 35. Rff3 {[%clk 0:00:33]}  Rdb8 {[%clk 0:00:42]} 36. Ba3 {[%clk 0:00:30]}  Rxb3 {[%clk 0:00:37]} 37. Nxb3 {[%clk 0:00:30]}  Qxc4 {[%clk 0:00:35]} 38. Qxc4+ {[%clk 0:00:28]}  Nxc4 {[%clk 0:00:36]} 39. Bxc5 {[%clk 0:00:29]}  Bxc5 {[%clk 0:00:23]} 40. Nxc5 {[%clk 0:00:30]}  Nxa5 {[%clk 0:00:22]} 41. Ra3 {[%clk 0:00:28]}  Nc4 {[%clk 0:00:19]} 42. Rc3 {[%clk 0:00:28]}  Nd6 {[%clk 0:00:16]} 43. Nxa6 {[%clk 0:00:27]}  Rb2 {[%clk 0:00:15]} 44. Kg1 {[%clk 0:00:20]}  Ndxe4 {[%clk 0:00:15]} 45. Re3 {[%clk 0:00:20]}  Rb1+ {[%clk 0:00:13]} 46. Kh2 {[%clk 0:00:21]}  Rb2 {[%clk 0:00:13]} 47. Nc7 {[%clk 0:00:21]}  Nd6 {[%clk 0:00:11]} 48. Rxe5 {[%clk 0:00:20]}  Nf5 {[%clk 0:00:11]} 49. Ne6 {[%clk 0:00:17]}  Kf7 {[%clk 0:00:04]} 50. Ng5+ {[%clk 0:00:17]}  Kf8 {[%clk 0:00:04]} 51. Re1 {[%clk 0:00:17]}  Nh5 {[%clk 0:00:04]} 52. Ne6+ {[%clk 0:00:14]}  Kg8 {[%clk 0:00:04]} 53. Ng5 {[%clk 0:00:12]}  Nf6 {[%clk 0:00:02]} 54. Ra1 {[%clk 0:00:10]}  Kf8 {[%clk 0:00:03]} 55. Kg1 {[%clk 0:00:10]}  Ke7 {[%clk 0:00:03]} 56. Ra7+ {[%clk 0:00:10]}  Kd6 {[%clk 0:00:03]} 57. g4 {[%clk 0:00:11]}  Nh4 {[%clk 0:00:02]} 58. Ba8 {[%clk 0:00:10]}  Ke5 {[%clk 0:00:03]} 59. Ra4 {[%clk 0:00:10]}  Nf5 {[%clk 0:00:01]} 60. Nf3+ {[%clk 0:00:09]}  Kd6 {[%clk 0:00:01]} 61. gxf5 {[%clk 0:00:10]}  gxf5 {[%clk 0:00:02]} 62. Nh4 {[%clk 0:00:10]}  Ke5 {[%clk 0:00:01]} 63. Ra5+ {[%clk 0:00:10]}  Kf4 {[%clk 0:00:02]} 64. Nxf5 {[%clk 0:00:08]}  g6 {[%clk 0:00:02]} 65. Nh4 {[%clk 0:00:08]}  g5 {[%clk 0:00:02]} 66. Ng6+ {[%clk 0:00:07]}  Kg3 {[%clk 0:00:02]} 67. Ra3+ {[%clk 0:00:06]} 1-0


[Site "https://www.chess.com"]

[Event "Titled Tuesday Blitz January 17 Early 2023"]
[White "Murzin, Volodar"]
[Black "Andreikin, Dmitry"]
[WhiteFideId "44155573"]
[BlackFideId "4158814"]
[WhiteElo "2604"]
[BlackElo "2729"]
[Result "1/2-1/2"]
[Round "03"]
[TimeControl "180+2"]
[Date "2023.01.17"]
[WhiteClock "0:00:03"]
[BlackClock "0:00:08"]

1. e4 {[%clk 0:02:58]}  e6 {[%clk 0:03:00]} 2. d3 {[%clk 0:02:56]}  d5 {[%clk 0:03:00]} 3. Qe2 {[%clk 0:02:56]}  Nc6 {[%clk 0:03:00]} 4. Nf3 {[%clk 0:02:55]}  Nf6 {[%clk 0:02:59]} 5. e5 {[%clk 0:02:41]}  Nd7 {[%clk 0:02:58]} 6. g3 {[%clk 0:02:41]}  a5 {[%clk 0:02:50]} 7. Bg2 {[%clk 0:02:36]}  Be7 {[%clk 0:02:50]} 8. O-O {[%clk 0:02:35]}  O-O {[%clk 0:02:44]} 9. h4 {[%clk 0:02:35]}  b6 {[%clk 0:02:42]} 10. Bf4 {[%clk 0:02:27]}  a4 {[%clk 0:02:40]} 11. a3 {[%clk 0:02:24]}  Ba6 {[%clk 0:02:38]} 12. Re1 {[%clk 0:02:19]}  Na5 {[%clk 0:02:34]} 13. Nbd2 {[%clk 0:01:55]}  c5 {[%clk 0:02:34]} 14. Qe3 {[%clk 0:01:44]}  c4 {[%clk 0:02:22]} 15. d4 {[%clk 0:01:40]}  c3 {[%clk 0:02:23]} 16. bxc3 {[%clk 0:01:34]}  Qc7 {[%clk 0:02:23]} 17. Bg5 {[%clk 0:01:28]}  Bxg5 {[%clk 0:02:22]} 18. hxg5 {[%clk 0:01:11]}  Rfc8 {[%clk 0:02:21]} 19. Nb1 {[%clk 0:01:10]}  Nf8 {[%clk 0:02:13]} 20. Bf1 {[%clk 0:01:02]}  Ng6 {[%clk 0:02:01]} 21. Bd3 {[%clk 0:00:57]}  Bc4 {[%clk 0:01:52]} 22. Kg2 {[%clk 0:00:55]}  Qc6 {[%clk 0:01:53]} 23. Rh1 {[%clk 0:00:38]}  Qb5 {[%clk 0:01:53]} 24. Bxg6 {[%clk 0:00:32]}  fxg6 {[%clk 0:01:30]} 25. Nbd2 {[%clk 0:00:32]}  Qb2 {[%clk 0:01:27]} 26. Qf4 {[%clk 0:00:23]}  Qxc2 {[%clk 0:01:22]} 27. Qh4 {[%clk 0:00:23]}  Kf7 {[%clk 0:01:19]} 28. Rac1 {[%clk 0:00:17]}  Qf5 {[%clk 0:01:17]} 29. Qxh7 {[%clk 0:00:08]}  Nb3 {[%clk 0:01:07]} 30. Rce1 {[%clk 0:00:08]}  Bd3 {[%clk 0:01:07]} 31. Rh4 {[%clk 0:00:06]}  Rh8 {[%clk 0:00:54]} 32. Qxh8 {[%clk 0:00:07]}  Rxh8 {[%clk 0:00:55]} 33. Rxh8 {[%clk 0:00:08]}  Nxd2 {[%clk 0:00:52]} 34. Nxd2 {[%clk 0:00:09]}  Qxg5 {[%clk 0:00:52]} 35. Re3 {[%clk 0:00:09]}  Bf5 {[%clk 0:00:51]} 36. Rb8 {[%clk 0:00:09]}  Qh5 {[%clk 0:00:47]} 37. Nf3 {[%clk 0:00:09]}  Be4 {[%clk 0:00:40]} 38. Rb7+ {[%clk 0:00:08]}  Kg8 {[%clk 0:00:38]} 39. Rb8+ {[%clk 0:00:08]}  Kh7 {[%clk 0:00:37]} 40. Rf8 {[%clk 0:00:09]}  g5 {[%clk 0:00:36]} 41. Kg1 {[%clk 0:00:09]}  Kg6 {[%clk 0:00:30]} 42. c4 {[%clk 0:00:05]}  Qh3 {[%clk 0:00:15]} 43. cxd5 {[%clk 0:00:04]}  Bxd5 {[%clk 0:00:14]} 44. Rd8 {[%clk 0:00:04]}  g4 {[%clk 0:00:07]} 45. Nh4+ {[%clk 0:00:04]}  Kf7 {[%clk 0:00:07]} 46. Rxd5 {[%clk 0:00:04]}  exd5 {[%clk 0:00:08]} 47. e6+ {[%clk 0:00:05]}  Ke8 {[%clk 0:00:08]} 48. Nf5 {[%clk 0:00:05]}  Qh7 {[%clk 0:00:07]} 49. Nd6+ {[%clk 0:00:05]}  Ke7 {[%clk 0:00:07]} 50. Nc8+ {[%clk 0:00:06]}  Ke8 {[%clk 0:00:08]} 51. Nd6+ {[%clk 0:00:06]}  Ke7 {[%clk 0:00:07]} 52. Nc8+ {[%clk 0:00:06]}  Ke8 {[%clk 0:00:08]} 53. Nd6+ {[%clk 0:00:03]} 1/2-1/2


[Site "https://www.chess.com"]

[Event "Titled Tuesday Blitz January 17 Early 2023"]
[White "Artemiev, Vladislav"]
[Black "Kilic, Eray"]
[WhiteFideId "24101605"]
[BlackFideId "44517173"]
[WhiteElo "2701"]
[BlackElo "2414"]
[Result "1-0"]
[Round "03"]
[TimeControl "180+2"]
[Date "2023.01.17"]
[WhiteClock "0:00:11"]
[BlackClock "0:00:02"]

1. e4 {[%clk 0:02:59]}  c5 {[%clk 0:02:59]} 2. Nf3 {[%clk 0:02:59]}  d6 {[%clk 0:03:00]} 3. Nc3 {[%clk 0:02:57]}  Nf6 {[%clk 0:02:58]} 4. e5 {[%clk 0:02:58]}  dxe5 {[%clk 0:02:58]} 5. Nxe5 {[%clk 0:02:58]}  e6 {[%clk 0:02:59]} 6. g3 {[%clk 0:02:58]}  Bd6 {[%clk 0:02:59]} 7. Nc4 {[%clk 0:02:50]}  Be7 {[%clk 0:02:52]} 8. Bg2 {[%clk 0:02:49]}  O-O {[%clk 0:02:53]} 9. O-O {[%clk 0:02:49]}  Nc6 {[%clk 0:02:52]} 10. d3 {[%clk 0:02:49]}  Bd7 {[%clk 0:02:51]} 11. Re1 {[%clk 0:02:44]}  Qc8 {[%clk 0:02:47]} 12. Bf4 {[%clk 0:02:43]}  Nd4 {[%clk 0:02:47]} 13. Nd6 {[%clk 0:02:20]}  Bxd6 {[%clk 0:02:45]} 14. Bxd6 {[%clk 0:02:20]}  Re8 {[%clk 0:02:45]} 15. Be5 {[%clk 0:02:01]}  Nd5 {[%clk 0:02:28]} 16. Qg4 {[%clk 0:01:34]}  Nf5 {[%clk 0:01:47]} 17. Nxd5 {[%clk 0:01:27]}  exd5 {[%clk 0:01:47]} 18. Bxd5 {[%clk 0:01:27]}  Kh8 {[%clk 0:01:26]} 19. Bxf7 {[%clk 0:01:12]}  Re7 {[%clk 0:01:26]} 20. Qh5 {[%clk 0:01:04]}  Qc6 {[%clk 0:01:05]} 21. c4 {[%clk 0:00:51]}  Rf8 {[%clk 0:00:57]} 22. Bd5 {[%clk 0:00:50]}  Qc8 {[%clk 0:00:58]} 23. Bc3 {[%clk 0:00:43]}  Rxe1+ {[%clk 0:00:53]} 24. Rxe1 {[%clk 0:00:43]}  Be8 {[%clk 0:00:42]} 25. Qg5 {[%clk 0:00:36]}  h6 {[%clk 0:00:36]} 26. Qg4 {[%clk 0:00:33]}  Qd8 {[%clk 0:00:28]} 27. Re5 {[%clk 0:00:29]}  h5 {[%clk 0:00:20]} 28. Qe4 {[%clk 0:00:23]}  Bg6 {[%clk 0:00:20]} 29. Re6 {[%clk 0:00:20]}  Bh7 {[%clk 0:00:19]} 30. Qe5 {[%clk 0:00:19]}  Qg5 {[%clk 0:00:15]} 31. Re8 {[%clk 0:00:14]}  Qc1+ {[%clk 0:00:06]} 32. Kg2 {[%clk 0:00:14]}  Rg8 {[%clk 0:00:01]} 33. Bxg8 {[%clk 0:00:11]}  Bxg8 {[%clk 0:00:02]} 34. Qxf5 {[%clk 0:00:11]} 1-0


[Site "https://www.chess.com"]

[Event "Titled Tuesday Blitz January 17 Early 2023"]
[White "Concio, Michael Jr."]
[Black "Martinez Alcantara, Jose Eduardo"]
[WhiteFideId "5217873"]
[BlackFideId "3805662"]
[WhiteElo "2395"]
[BlackElo "2619"]
[Result "0-1"]
[Round "03"]
[TimeControl "180+2"]
[Date "2023.01.17"]
[WhiteClock "0:00:02"]
[BlackClock "0:01:19"]

1. c4 {[%clk 0:02:54]}  c5 {[%clk 0:02:59]} 2. Nf3 {[%clk 0:02:53]}  Nc6 {[%clk 0:03:00]} 3. d4 {[%clk 0:02:53]}  cxd4 {[%clk 0:02:59]} 4. Nxd4 {[%clk 0:02:53]}  Nf6 {[%clk 0:03:00]} 5. Nc3 {[%clk 0:02:53]}  e6 {[%clk 0:02:58]} 6. e4 {[%clk 0:02:37]}  Bb4 {[%clk 0:02:49]} 7. Nxc6 {[%clk 0:02:20]}  dxc6 {[%clk 0:02:49]} 8. Qxd8+ {[%clk 0:02:18]}  Kxd8 {[%clk 0:02:50]} 9. f3 {[%clk 0:02:14]}  e5 {[%clk 0:02:49]} 10. Bd2 {[%clk 0:02:10]}  Be6 {[%clk 0:02:48]} 11. O-O-O {[%clk 0:02:10]}  Kc8 {[%clk 0:02:41]} 12. a3 {[%clk 0:02:02]}  Be7 {[%clk 0:02:38]} 13. Be2 {[%clk 0:02:01]}  Nd7 {[%clk 0:02:37]} 14. Be3 {[%clk 0:01:59]}  a5 {[%clk 0:02:34]} 15. Nd5 {[%clk 0:01:53]}  Bd8 {[%clk 0:02:34]} 16. Kb1 {[%clk 0:01:46]}  f6 {[%clk 0:02:34]} 17. Nc3 {[%clk 0:01:38]}  Be7 {[%clk 0:02:34]} 18. Rd2 {[%clk 0:01:38]}  Rd8 {[%clk 0:02:33]} 19. Rhd1 {[%clk 0:01:37]}  Nf8 {[%clk 0:02:34]} 20. Na4 {[%clk 0:01:34]}  Rxd2 {[%clk 0:01:55]} 21. Rxd2 {[%clk 0:01:11]}  Ra6 {[%clk 0:01:37]} 22. c5 {[%clk 0:00:18]}  Ra7 {[%clk 0:01:36]} 23. Nb6+ {[%clk 0:00:18]}  Kc7 {[%clk 0:01:37]} 24. g4 {[%clk 0:00:09]}  a4 {[%clk 0:01:30]} 25. Bc4 {[%clk 0:00:07]}  Bxc4 {[%clk 0:01:26]} 26. Nxc4 {[%clk 0:00:08]}  Ne6 {[%clk 0:01:27]} 27. Nd6 {[%clk 0:00:04]}  Ra8 {[%clk 0:01:22]} 28. Nf5 {[%clk 0:00:02]}  Bf8 {[%clk 0:01:20]} 29. Kc2 {[%clk 0:00:02]}  g6 {[%clk 0:01:18]} 30. Nd6 {[%clk 0:00:02]}  Rd8 {[%clk 0:01:19]} 31. Nc4 {[%clk 0:00:02]}  Rxd2+ {[%clk 0:01:17]} 32. Kxd2 {[%clk 0:00:02]}  Bxc5 {[%clk 0:01:18]} 33. Bxc5 {[%clk 0:00:02]}  Nxc5 {[%clk 0:01:19]} 34. Kc3 {[%clk 0:00:03]}  b5 {[%clk 0:01:18]} 35. Ne3 {[%clk 0:00:03]}  Ne6 {[%clk 0:01:18]} 36. Kd2 {[%clk 0:00:02]}  Nd4 {[%clk 0:01:19]} 0-1


[Site "https://www.chess.com"]